[Event "ESP-ch Teams Primera 2022"]
[Site "Sanxenxo Pontevedra"]
[Date "2022.09.23"]
[Round "7.16"]
[White "Martinez Ramirez, Erik"]
[Black "Garcia Cuenca, Victor"]
[Result "1-0"]
[ECO "B81"]
[WhiteElo "2181"]
[BlackElo "2369"]
[Annotator "TA"]
[PlyCount "61"]
[EventDate "2022.09.17"]
[EventType "team-tourn"]
[EventCountry "ESP"]
[SourceTitle "playchess.com"]
[Source "ChessBase"]
[SourceQuality "1"]
[TimeControl "5400+30"]

{[%evp 20,61,82,73,77,38,27,47,53,41,104,71,95,25,77,89,77,81,75,73,79,25,23,20,25,18,19,21,15,3,8,10,14,0,95,94,232,59,60,31,271,274,378,383]} 1. e4 {[%emt 0:00:03]} c5 {[%emt 0:00:04]} 2. Nf3 {[%emt 0:00:06]} e6 {[%emt 0:00:05]} 3. d4 {[%emt 0:00:07]} cxd4 {[%emt 0:00:02]} 4. Nxd4 {[%emt 0:00:05]} Nf6 {[%emt 0:00:05]} 5. Nc3 {[%emt 0:00:14]} d6 {[%emt 0:00:04]} 6. g4 {[%emt 0:00:38]} h6 {[%emt 0:00:04]} 7. h4 {[%emt 0:00:14]} Nc6 {[%emt 0:00:07]} 8. Rg1 {[%emt 0:25:24]} h5 {[%emt 0:00:01]} 9. gxh5 {[%emt 0:00:20]} Rxh5 {[%emt 0:00:02]} 10. Bg5 {[%emt 0:02:35]} Rh8 {[%emt 0:00:06]} 11. Qd2 {[%emt 0:10:11]} Qb6 {[%emt 0:00:39][%csl LRb2,LRd4] B81: Sicilian Scheveningen: Keres Attack.} 12. Nxc6 {[%emt 0:05:27]} bxc6 {[%emt 0:00:08]} 13. O-O-O {[%emt 0:00:20] [#]} Rb8 $146 {[%emt 0:04:15][%csl Gb8][%cal Rb6b2] White is slightly better.} ({Predecessor:} 13... e5 14. Bc4 Rb8 15. Bb3 Be6 16. f4 exf4 17. Bxf4 Bxb3 18. axb3 Rd8 19. Qe2 Nd7 {1-0 (33) Chan,T-Yeung,C (1552) ICCF email 2007}) 14. b3 {[%emt 0:02:01]} d5 {[%emt 0:20:58]} (14... e5 $14) 15. exd5 $16 {[%emt 0:15:08]} Nxd5 {[%emt 0:03:40]} 16. Na4 {[%emt 0:10:19]} ({White should play} 16. Kb1 $16) 16... Ba3+ {[%emt 0:07:07]} (16... Qc7 $11) 17. Kb1 {[%emt 0:00:09]} Qb4 {[%emt 0:00:05]} 18. Qxb4 {[%emt 0:01:37] Dancing on a razor blade.} Bxb4 {[%emt 0:00:36]} 19. c4 {[%emt 0:00:03]} Ne7 {[%emt 0:00:12]} 20. Bf4 $40 {[%emt 0:08:51][%mdl 128] White has some attack.} (20. Kb2 $16) 20... Rb7 $11 {[%emt 0:00:15]} 21. Rxg7 {[%emt 0:00:10]} Rxh4 {[%emt 0:01:53]} 22. Bg5 {[%emt 0:01:53][%cal Bf4g5,Bg5f6,Bf6e5][%mdl 32] White wants to mate with Rg8+.} Rh8 {[%emt 0:00:09] Prevents Rg8+.} 23. Bf6 {[%emt 0:02:14] White wants to play Rg1.} Rd7 {[%emt 0:00:36]} 24. Rxd7 {[%emt 0:03:34]} (24. Bd3 {seems wilder.} Rh3 25. Nb2 Bb7 26. Be4) 24... Bxd7 {[%emt 0:00:07]} 25. Bd3 {[%emt 0:01:17]} c5 {[%emt 0:05:49]} 26. Nc3 {[%emt 0:01:31]} Ng8 {[%emt 0:13:11]} (26... Bxc3 $11 27. Bxc3 Rh1+ 28. Kb2 Rh2) 27. Be5 $16 {[%emt 0:00:02] Threatens to win with Ne4. White is much more active.} f6 {[%emt 0:00:21] [#]} (27... Bc6 $16) 28. Bc7 $2 {[%emt 0:00:43]} ({Stronger than} 28. Bg6+ Kd8 29. a3 Ba5 $15) (28. Ne4 $1 $18 {[%cal Re4d6]} Rh1+ 29. Kb2 fxe5 30. Rxg8+ Ke7 31. a3) 28... Ne7 $14 {[%emt 0:09:50]} 29. Bd6 {[%emt 0:00:01]} Nc8 {[%emt 0:02:02]} (29... Bxc3 $14 30. Rxe7+ Kd8) 30. Ne4 $18 {[%emt 0:00:40][%csl LRc5,LRf6]} Nxd6 {[%emt 0:04:38]} 31. Nxd6+ {[%emt 0:00:39] Weighted Error Value: White=0.23 (precise) /Black=0.37} 1-0

[Event "ESP-ch Teams Primera 2022"]
[Site "Sanxenxo Pontevedra"]
[Date "2022.09.23"]
[Round "7.17"]
[White "Guadamuro Torrente, Anabel"]
[Black "Bosque Ortega, Xavier"]
[Result "1-0"]
[ECO "B15"]
[WhiteElo "2102"]
[BlackElo "2164"]
[Annotator "TA"]
[PlyCount "73"]
[EventDate "2022.09.17"]
[EventType "team-tourn"]
[EventCountry "ESP"]
[SourceTitle "playchess.com"]
[Source "ChessBase"]
[SourceQuality "1"]
[TimeControl "5400+30"]

{[%evp 16,73,11,12,28,22,33,31,47,36,38,14,22,0,0,-20,25,18,18,23,22,-20,105,105,121,122,336,364,351,314,339,338,332,319,295,272,253,190,190,143,136,143,183,130,162,166,167,166,458,450,453,453,458,458,3752,379,3752,2830,2072,2041]} 1. e4 c6 {[%emt 0:00:09]} 2. d4 {[%emt 0:00:22]} d5 {[%emt 0:00:34]} 3. Nc3 {[%emt 0:00:24]} g6 {[%emt 0:00:13]} 4. h3 {[%emt 0:01:17]} Bg7 {[%emt 0:01:04]} 5. Nf3 {[%emt 0:00:12]} dxe4 {[%emt 0:04:02]} 6. Nxe4 {[%emt 0:00:39]} Nf6 {[%emt 0:01:47]} 7. Nxf6+ {[%emt 0:09:47]} exf6 {[%emt 0:00:23]} 8. Bc4 {[%emt 0:05:14]} O-O {[%emt 0:01:19]} 9. O-O {[%emt 0:00:15] Active counter play!} b5 {[%emt 0:04:23] [#] B15: Caro-Kann: 3 Nc3: 3...g6 and 3...dxe4 4 Nxe4 Nf6 5 Nxf6+ exf6.} 10. Be2 $146 {[%emt 0:09:47]} ({Predecessor:} 10. Bb3 Nd7 11. c3 Nb6 12. Re1 a5 13. Bc2 a4 14. Bd2 Be6 15. b3 Re8 16. Rb1 Bf8 17. Be4 {0-1 (65) Gledura,B (2652)-Niemann,H (2642) Chess.com INT 2022}) 10... Bb7 {[%emt 0:00:58]} 11. a4 {[%emt 0:10:18]} a6 {[%emt 0:08:17] White is slightly better.} 12. Bf4 {[%emt 0:02:44]} Nd7 {[%emt 0:02:22][%cal Bb8d7,Bd7f8,Bf8e6][%mdl 32]} 13. a5 {[%emt 0:04:31]} Re8 {[%emt 0:01:56]} 14. c4 {[%emt 0:10:50]} Nf8 {[%emt 0:03:18]} 15. Be3 {[%emt 0:05:55]} Ne6 {[%emt 0:23:36]} 16. d5 {[%emt 0:13:54]} cxd5 {[%emt 0:20:24]} 17. cxb5 {[%emt 0:10:57]} d4 {[%emt 0:01:40]} 18. Bxd4 {[%emt 0:05:55]} axb5 {[%emt 0:16:19]} (18... Nxd4 $11 19. Nxd4 f5) 19. Bb6 $16 {[%emt 0:03:21]} Qe7 {[%emt 0:01:40]} 20. Bxb5 {[%emt 0:00:09]} Red8 $2 {[%emt 0:02:43] [#] A mistake that costs the game.} 21. Bxd8 $18 {[%emt 0:00:23]} Rxd8 {[%emt 0:00:02]} 22. Qe2 {[%emt 0:02:03]} Qc5 {[%emt 0:00:50]} 23. a6 {[%emt 0:01:57]} Bxf3 {[%emt 0:03:07]} 24. Qxf3 {[%emt 0:00:04]} ({But not} 24. gxf3 $2 Nf4 25. Rfd1 Nxe2+ $19) 24... Nd4 {[%emt 0:00:10]} 25. Qb7 {[%emt 0:00:57]} Qxb5 {[%emt 0:01:00]} 26. Qxb5 {[%emt 0:00:15]} Nxb5 {[%emt 0:00:01]} 27. a7 {[%emt 0:01:06]} (27. Rfd1 $18 Ra8 28. Ra5) 27... Ra8 $16 {[%emt 0:00:51] [#]} 28. Ra5 {[%emt 0:00:03]} Nxa7 {[%emt 0:00:20]} 29. Rfa1 {[%emt 0:00:03]} (29. Rd1 $18) 29... Rb8 {[%emt 0:00:05]} 30. Rxa7 {[%emt 0:00:06] Strongly threatening Ra8.} Rxb2 $18 {[%emt 0:00:45][%mdl 4096] Endgame KRR-KRB} 31. Rd1 {[%emt 0:00:31]} Bf8 $2 {[%emt 0:01:04]} (31... Rb8 32. Rdd7 Rf8) 32. Rd8 {[%emt 0:00:54]} Kg7 {[%emt 0:00:36]} 33. Rdd7 {[%emt 0:00:13]} Kh6 {[%emt 0:00:27]} 34. Rxf7 {[%emt 0:01:01]} Bc5 {[%emt 0:00:06]} (34... Bd6 $142 35. Rxh7+ Kg5 36. Ra5+ f5) 35. Rxh7+ {[%emt 0:00:28]} Kg5 {[%emt 0:00:01]} 36. Ra5 {[%emt 0:00:53]} Rc2 {[%emt 0:00:39]} 37. Rc7 {[%emt 0:00:07] Weighted Error Value: White=0.17 (very precise) /Black=0.37} 1-0

[Event "ESP-ch Teams Primera 2022"]
[Site "Sanxenxo Pontevedra"]
[Date "2022.09.23"]
[Round "7.18"]
[White "Castillo Escario, Yolanda"]
[Black "Recuenco Andres, Javier"]
[Result "1-0"]
[ECO "B32"]
[WhiteElo "2035"]
[BlackElo "1925"]
[Annotator "TA"]
[PlyCount "89"]
[EventDate "2022.09.17"]
[EventType "team-tourn"]
[EventCountry "ESP"]
[SourceTitle "playchess.com"]
[Source "ChessBase"]
[SourceQuality "1"]
[TimeControl "5400+30"]

{[%evp 15,89,22,33,35,33,22,55,46,46,12,7,11,11,0,17,-33,0,0,0,-14,-12,-14,20,-57,-61,-74,27,18,37,19,233,168,168,168,154,67,235,127,284,265,482,475,452,416,1615,1545,5081,2722,3439,2575,5131,4477,5437,1611,29975,29976,29973,29974,29977,29976,29979,29980,29980,29981,29981,29982,29982,29983,29981,29982,29988,29989,29990,29991,29991,29992]} 1. e4 {[%emt 0:00:03]} c5 {[%emt 0:00:12]} 2. Nf3 {[%emt 0:00:09]} Nc6 {[%emt 0:00:08]} 3. d4 {[%emt 0:00:09]} cxd4 {[%emt 0:00:08]} 4. Nxd4 {[%emt 0:00:06]} e5 {[%emt 0:00:06]} 5. Nb5 {[%emt 0:00:12]} a6 {[%emt 0:00:10]} 6. Nd6+ {[%emt 0:00:10]} Bxd6 {[%emt 0:00:12]} 7. Qxd6 {[%emt 0:00:06]} Qe7 {[%emt 0:00:09]} 8. Qxe7+ {[%emt 0:04:31] is cutting edge theory.} Ngxe7 {[%emt 0:00:16]} 9. c4 {[%emt 0:00:06] Prevents d5. B32: Sicilian: Löwenthal and Kalashnikov Variations.} Nb4 {[%emt 0:03:44] [#] White must now prevent ...Nc2+.} 10. Na3 {[%emt 0:03:38] [#] Against Nc2+} f5 $146 {[%emt 0:03:16]} ({Predecessor:} 10... Nec6 11. Be3 d6 12. Rd1 O-O 13. Rxd6 Nxa2 14. Be2 Be6 15. O-O Rfd8 16. Rfd1 Rxd6 17. Rxd6 {1-0 (38) Kelbl,J (1214)-Bouguern,A (1160) LSS email 2008}) 11. Bd2 {[%emt 0:03:10] White is slightly better.} Nec6 {[%emt 0:00:55]} 12. f3 {[%emt 0:09:24]} fxe4 {[%emt 0:01:52]} 13. fxe4 {[%emt 0:00:33]} Rf8 {[%emt 0:01:56]} 14. Be2 {[%emt 0:01:10]} d6 {[%emt 0:00:34]} 15. Rf1 {[%emt 0:01:54]} (15. Rd1 $11) 15... Be6 {[%emt 0:02:07]} 16. Rxf8+ {[%emt 0:23:21]} Kxf8 {[%emt 0:00:40]} 17. Be3 {[%emt 0:00:03]} Ke7 {[%emt 0:05:04]} 18. Kd2 {[%emt 0:00:08]} Rf8 {[%emt 0:01:00]} 19. Nc2 {[%emt 0:02:10]} (19. Kc3 $11) 19... Nxc2 $1 $15 {[%emt 0:08:27]} 20. Kxc2 {[%emt 0:00:02]} Na5 {[%emt 0:00:30]} (20... Nd4+ $17 21. Bxd4 exd4) 21. b3 $11 {[%emt 0:00:51]} Rc8 {[%emt 0:00:40]} 22. Kd2 {[%emt 0:00:48]} Bxc4 $2 {[%emt 0:16:56]} 23. bxc4 {[%emt 0:01:10]} Nxc4+ {[%emt 0:00:09]} 24. Bxc4 {[%emt 0:08:10]} Rxc4 {[%emt 0:00:10][%mdl 4096] Endgame KRB-KR} 25. Rc1 {[%emt 0:03:10]} (25. Kd3 $16 b5 26. a3) 25... Rb4 {[%emt 0:00:50]} (25... Rxe4 $14 26. Rc7+ Kf6) 26. a3 {[%emt 0:02:39]} ({White should try} 26. Rc7+ $18 Kf8 27. a3 Rb2+ 28. Kd3) 26... Rb3 $2 {[%emt 0:03:16]} (26... Rxe4 $16 {was called for.} 27. Rc7+ Kf6) 27. Rc3 {[%emt 0:00:21]} Rxc3 {[%emt 0:17:16]} (27... Rb2+ 28. Rc2 Rxc2+ 29. Kxc2 Kd7) 28. Kxc3 $18 {[%emt 0:00:04] KB-KP} Kd7 {[%emt 0:00:07]} 29. a4 {[%emt 0:13:49]} Kc6 {[%emt 0:00:20]} (29... b5 $142 30. axb5 axb5) 30. a5 {[%emt 0:01:09]} d5 {[%emt 0:01:55]} 31. exd5+ {[%emt 0:00:39]} Kxd5 {[%emt 0:00:08]} 32. Kd3 {[%emt 0:01:57] [#] aiming for Bb6.} e4+ {[%emt 0:16:02]} 33. Kc3 {[%emt 0:00:11]} g6 {[%emt 0:00:48]} 34. h3 {[%emt 0:01:34]} h5 {[%emt 0:00:15]} 35. g3 {[%emt 0:00:44] White mates.} Ke5 {[%emt 0:03:28]} 36. Kc4 {[%emt 0:00:17]} Ke6 {[%emt 0:03:54]} 37. Kd4 {[%emt 0:01:40]} Kf5 {[%emt 0:00:12]} 38. Kc5 {[%emt 0:01:39]} Ke6 {[%emt 0:00:59]} 39. Kb6 {[%emt 0:07:24]} Kd5 {[%emt 0:00:13]} 40. Kxb7 {[%emt 0:00:05]} Kc4 {[%emt 0:00:20]} 41. Kxa6 {[%emt 0:00:06]} Kd3 {[%emt 0:00:09]} 42. Bb6 {[%emt 0:00:48]} Ke2 {[%emt 0:00:43]} 43. Kb5 {[%emt 0:01:59]} Kf3 {[%emt 0:00:21]} 44. a6 {[%emt 0:01:57][%cal Ba5a6,Ba6a7][%mdl 32]} Kxg3 {[%emt 0:00:28]} 45. a7 {[%emt 0:00:04] Weighted Error Value: White=0.21 (precise) /Black=0.58} 1-0

[Event "ESP-ch Teams Primera 2022"]
[Site "Sanxenxo Pontevedra"]
[Date "2022.09.23"]
[Round "7.19"]
[White "Laiz Ibanez, Hector"]
[Black "Bjerre, Jonas Buhl"]
[Result "0-1"]
[ECO "E46"]
[WhiteElo "2327"]
[BlackElo "2598"]
[Annotator "TA"]
[PlyCount "78"]
[EventDate "2022.09.17"]
[EventType "team-tourn"]
[EventCountry "ESP"]
[SourceTitle "playchess.com"]
[Source "ChessBase"]
[SourceQuality "1"]
[TimeControl "5400+30"]

{[%evp 9,78,-5,7,8,3,15,7,0,0,-11,0,-8,0,0,0,-6,13,12,23,22,29,21,83,25,22,19,29,16,14,15,21,-112,-117,-116,-116,-110,-100,-118,-106,-108,-112,-120,-61,-108,-106,-142,-130,-115,-110,-149,-109,-135,-82,-253,-249,-451,-478,-468,-459,-614,-437,-374,-333,-29988,-2585,-6295,-6263,-29988,-29989,-29995,-29996]} 1. d4 Nf6 2. c4 e6 3. Nc3 Bb4 4. e3 O-O 5. Bd2 c5 6. a3 {E46: Nimzo-Indian: Rubinstein: 4 e3 0-0 5 Ne2 without early Bd3.} Bxc3 7. Bxc3 Ne4 8. Rc1 {The position is equal.} b6 9. Nf3 {[%cal Bg1f3,Bf3d4,Bd4b5,Bb5c7,Bc7d5][%mdl 32]} Bb7 10. Be2 d6 11. O-O Nxc3 12. Rxc3 Nd7 13. dxc5 Nxc5 14. Nd4 $1 {[#]} e5 $146 ({Predecessor:} 14... Ne4 15. Rc1 Qe7 16. Bf3 Rfd8 17. Qc2 Nf6 18. Nc6 Bxc6 19. Bxc6 Rac8 20. Bb5 Nd7 21. Bxd7 Rxd7 {½-½ (30) Makhmutov,R (2416)-Bocharov,D (2524) Cheliabinsk 2020}) 15. Nb5 Qg5 (15... Bc6 $11) 16. Bf3 (16. f3 $16) 16... e4 $11 17. Be2 {next b4 is good for White.} Rfd8 18. Nc7 Rac8 19. Nd5 b5 20. Qd4 (20. Nf4 $11 {keeps the balance.}) 20... bxc4 $1 $17 21. Bxc4 Ne6 $1 22. Qd2 {[#]} Rxc4 $1 {[%mdl 512]} 23. Rxc4 Bxd5 {[%cal Bb7d5,Bd5b3,Bb3c4][%mdl 32]} 24. Ra4 Bb3 25. Rxa7 d5 ({Black should try} 25... Nc5 $17 26. Qa5 g6) 26. Qa5 (26. Qb4 $15 {deserves consideration.} Bc4 27. Re1) 26... h5 27. Ra8 Rxa8 28. Qxa8+ Kh7 {Active counter play!} 29. Qb7 {[%csl LRb3,LRf7]} Bc4 {White must now prevent ...Be2.} 30. Re1 {Prevents Be2.} Qf5 ({Better is} 30... h4 {( -> ...h3)} 31. h3 f5) 31. a4 $2 {White does not recover from this.} (31. Qb4 $17) 31... Nc5 $40 {[%csl LRa4,LRb7][%mdl 128] Black has strong attack.} 32. Qb8 (32. Qc7 Nd3 33. Rf1) 32... Nd3 33. Rf1 Ne5 34. Re1 d4 35. b3 Bd5 {Hoping for ...Qg5.} 36. exd4 $2 {[#]} (36. h3 $19 Qg5 37. Kh2) 36... Nd3 (36... e3 $142 $1 37. fxe3 {[#]} Qe4 $1 38. Re2 Qb1+ 39. Kf2 Nd3+ 40. Kg3 Qf1 41. Qc8 Qxe2 42. Qf5+ g6 43. Qxd3 Qxd3 44. Kf4 Qe4+ 45. Kg3 Qxe3+ 46. Kh4 Qf4+ 47. Kh3 Qg4#) 37. Rf1 Nf4 38. Qe5 Qg4 {[%csl Gf4][%cal Rg4g2]} 39. g3 Ne2+ {Weighted Error Value: White=0.87/Black=0.30} 0-1

[Event "ESP-ch Teams Primera 2022"]
[Site "Sanxenxo Pontevedra"]
[Date "2022.09.23"]
[Round "7.20"]
[White "Andersen, Mads"]
[Black "Abal Cores, Lucas"]
[Result "1-0"]
[ECO "A89"]
[WhiteElo "2597"]
[BlackElo "2291"]
[Annotator "TA"]
[PlyCount "99"]
[EventDate "2022.09.17"]
[EventType "team-tourn"]
[EventCountry "ESP"]
[SourceTitle "playchess.com"]
[Source "ChessBase"]
[SourceQuality "1"]
[TimeControl "5400+30"]

{[%evp 17,99,24,25,18,58,47,54,54,53,50,59,55,67,49,46,56,71,39,41,0,0,19,45,51,45,56,58,44,90,107,150,150,147,145,147,144,193,155,193,154,229,214,208,175,176,175,175,175,168,165,364,357,359,357,331,308,286,277,5183,4818,5377,5318,5293,4998,5226,5132,5791,5691,29976,29977,29977,29977,29977,29978,29978,29979,29980,29980,29980,29981,29982,29983,29983,29984]} 1. d4 {[%emt 0:00:10]} f5 {[%emt 0:00:12]} 2. Nf3 {[%emt 0:00:54]} Nf6 {[%emt 0:00:14]} 3. g3 {[%emt 0:00:13]} g6 {[%emt 0:00:16]} 4. Bg2 {[%emt 0:00:10]} Bg7 {[%emt 0:00:13]} 5. O-O {[%emt 0:00:15]} d6 {[%emt 0:00:50]} 6. c4 {[%emt 0:00:19]} O-O {[%emt 0:00:12]} 7. Nc3 {[%emt 0:00:10]} Nc6 {[%emt 0:00:46]} 8. d5 {[%emt 0:00:31]} Ne5 {[%emt 0:00:30]} 9. Qb3 {[%emt 0:01:43]} Nxf3+ {[%emt 0:02:45]} 10. exf3 {[%emt 0:00:34] A89: Dutch Defence: Leningrad System: 5 Nf3 0-0 6 0-0 d6 7 Nc3 Nc6.} c5 {[%emt 0:03:56]} 11. Re1 {[%emt 0:00:28]} Rb8 {[%emt 0:02:20]} 12. a4 {[%emt 0:01:23] White is slightly better.} a6 {[%emt 0:02:56] [#]} 13. Qc2 $146 {[%emt 0:00:28]} ({Predecessor:} 13. Bd2 b6 14. Bf1 Bd7 15. f4 Ne8 16. Nd1 Rf7 17. Bc3 Bf8 18. Qc2 Nc7 19. b3 {1-0 (37) Muthaiah,A (2400)-Abal Cores,L (2315) Tornelo INT 2020}) 13... Bd7 {[%emt 0:07:07]} 14. Bf1 {[%emt 0:00:58]} Ne8 {[%emt 0:02:08]} 15. h4 {[%emt 0:29:37]} Nc7 {[%emt 0:10:31]} 16. Bg5 {[%emt 0:00:58]} Rf7 {[%emt 0:03:49]} 17. Qd2 {[%emt 0:12:25]} Qf8 {[%emt 0:00:25]} 18. h5 {[%emt 0:00:34]} gxh5 {[%emt 0:09:52]} 19. f4 {[%emt 0:00:55]} h6 {[%emt 0:10:36]} 20. Bh4 {[%emt 0:00:10]} Bf6 {[%emt 0:00:44]} 21. Bxf6 {[%emt 0:00:30]} Rxf6 {[%emt 0:00:05]} 22. Qe2 {[%emt 0:00:15][%csl LRe7,LRh5]} Re8 {[%emt 0:01:05]} (22... h4 $14) 23. Qxh5 $16 {[%emt 0:00:33] Black is now going downhill.} Qf7 {[%emt 0:00:13]} 24. Be2 {[%emt 0:01:43] White has more active pieces.} Qg7 {[%emt 0:05:37]} 25. Bf3 {[%emt 0:02:15]} b6 {[%emt 0:07:19]} 26. Re3 {[%emt 0:00:34]} e5 {[%emt 0:08:18]} (26... Kf8 $16 27. Qh4 e6) 27. dxe6 $1 $18 {[%emt 0:03:21]} Rfxe6 {[%emt 0:00:40]} 28. Rd3 {[%emt 0:05:43]} Re1+ {[%emt 0:02:54]} (28... Kh8 $16 29. Kg2 Qf6) 29. Rxe1 {[%emt 0:00:10]} Rxe1+ {[%emt 0:00:05]} 30. Kh2 {[%emt 0:02:28]} Qf6 {[%emt 0:02:59]} 31. Nd5 {[%emt 0:09:18]} Nxd5 {[%emt 0:00:47]} 32. Bxd5+ {[%emt 0:00:07]} Kg7 {[%emt 0:05:46]} 33. Rb3 {[%emt 0:00:30]} b5 {[%emt 0:03:49]} (33... Bxa4 {was necessary.} 34. Rxb6 Re7 35. Rxa6 Bc2) 34. axb5 {[%emt 0:01:24]} axb5 {[%emt 0:00:05]} 35. cxb5 {[%emt 0:01:01] Hoping for b6.} Be6 {[%emt 0:02:43]} 36. Bxe6 {[%emt 0:04:05]} Qxe6 {[%emt 0:00:05][%mdl 4096] Endgame [#] KQR-KQR} 37. Ra3 {[%emt 0:01:54]} Re2 $2 {[%emt 0:00:51]} (37... Qf7 38. Qf3 Qc4 39. Ra7+ Kg6) 38. Ra7+ {[%emt 0:03:16]} Kf8 {[%emt 0:02:09]} 39. Qf3 {[%emt 0:03:39]} Qe4 {[%emt 0:03:32]} 40. Qxe4 {[%emt 0:00:25]} fxe4 {[%emt 0:00:01] KR-KR} 41. b6 {[%emt 0:00:12]} e3 {[%emt 0:00:54]} 42. b7 {[%emt 0:01:17][%cal Rb7b8] [#]} Rxf2+ {[%emt 0:00:36]} 43. Kg1 {[%emt 0:00:27][%cal Rb7b8] White mates.} Rxb2 {[%emt 0:00:05]} 44. Ra8+ {[%emt 0:00:15]} Ke7 {[%emt 0:00:09]} 45. b8=Q {[%emt 0:00:14]} Rxb8 {[%emt 0:00:02]} 46. Rxb8 {[%emt 0:00:09]} d5 {[%emt 0:00:06]} 47. Kf1 {[%emt 0:00:41]} d4 {[%emt 0:01:08]} 48. Ke2 {[%emt 0:00:14]} Ke6 {[%emt 0:00:21]} 49. Rb6+ {[%emt 0:01:35]} Kf5 {[%emt 0:00:36]} 50. Rxh6 {[%emt 0:00:19] Weighted Error Value: White=0.05 (flawless) /Black=0.33} 1-0

[Event "ESP-ch Teams Primera 2022"]
[Site "Sanxenxo Pontevedra"]
[Date "2022.09.23"]
[Round "7.21"]
[White "Torrado Quintela, Julio"]
[Black "Sousa, Andre Ventura"]
[Result "1-0"]
[ECO "B11"]
[WhiteElo "2161"]
[BlackElo "2449"]
[Annotator "TA"]
[PlyCount "79"]
[EventDate "2022.09.17"]
[EventType "team-tourn"]
[EventCountry "ESP"]
[SourceTitle "playchess.com"]
[Source "ChessBase"]
[SourceQuality "1"]
[TimeControl "5400+30"]

{[%evp 12,79,13,0,5,10,9,-32,0,-84,52,49,58,56,54,47,62,0,0,-58,-59,-73,-70,-73,-49,-46,-50,-41,-23,-27,88,16,215,-31,-51,-37,-14,-33,440,438,566,563,849,835,1560,1003,1483,1487,2384,2279,2931,2748,29983,29963,2944,1009,987,977,1545,1494,2279,574,29990,29990,29990,29974,29972,29972,29993,1043]} 1. e4 {[%emt 0:00:05]} c6 {[%emt 0:00:04]} 2. Nc3 {[%emt 0:00:23]} d5 {[%emt 0:00:04]} 3. Nf3 {[%emt 0:00:11]} Bg4 {[%emt 0:00:04]} 4. h3 {[%emt 0:00:38]} Bxf3 {[%emt 0:00:04]} 5. Qxf3 {[%emt 0:00:04]} e6 {[%emt 0:00:03]} 6. d3 {[%emt 0:01:10]} Nd7 {[%emt 0:00:14]} 7. Bd2 {[%emt 0:00:35]} Qb6 {[%emt 0:01:03] 7...g6 is a critical line. B11: Caro-Kann: Two Knights Variation.} 8. O-O-O {[%emt 0:05:28]} d4 {[%emt 0:00:05] 8...Bd6 is vanishing.} 9. Nb1 {[%emt 0:01:59] [#]} a5 $146 {[%emt 0:01:57] Black is slightly better.} (9... Qa6 $5 {[%cal Ra6a2]} 10. a3 Ngf6 $11) ({Predecessor:} 9... c5 10. Na3 Ne7 11. g4 Nc6 12. Kb1 Qa6 13. Qg3 Nb6 14. c4 dxc3 15. Bxc3 Nd4 16. Bxd4 cxd4 {1-0 (45) Paramzina,A (2252)-Maltsevskaya,A (2331) Moscow 2021}) 10. c3 {[%emt 0:09:00]} (10. Qg3 $11 {keeps the balance.}) 10... c5 {[%emt 0:05:44]} (10... e5 $17) 11. c4 $14 {[%emt 0:02:23]} a4 {[%emt 0:01:08]} 12. Na3 {[%emt 0:04:55]} Ne7 {[%emt 0:15:23][%cal Bg8e7,Be7c6,Bc6b4,Bb4a2][%mdl 32]} 13. Qg3 {[%emt 0:06:04]} Nc6 {[%emt 0:07:14]} 14. f4 {[%emt 0:00:26]} ({Better is} 14. Be2 $14) 14... Nb4 $11 {[%emt 0:03:01]} 15. Kb1 {[%emt 0:00:06] [#]} ({White should try} 15. Bxb4 $11 cxb4 16. Nb5) 15... Nxa2 $1 $15 {[%emt 0:00:15]} 16. Nb5 {[%emt 0:16:07]} Nb4 {[%emt 0:00:04]} 17. Na3 {[%emt 0:00:20]} Na6 {[%emt 0:04:11]} 18. Be2 {[%emt 0:01:47]} Nc7 {[%emt 0:03:17]} 19. e5 {[%emt 0:05:21]} Rb8 {[%emt 0:01:54]} 20. Rde1 {[%emt 0:08:16]} Qa6 {[%emt 0:01:45] [#]} (20... g6 $11 {remains equal.}) 21. f5 $1 $16 {[%emt 0:00:55] White is more active.} exf5 {[%emt 0:03:14] [#]} (21... b5 $1 $11) 22. Bf3 $2 {[%emt 0:02:54]} (22. e6 $1 $18 Nxe6 23. Nb5) 22... Qg6 $15 {[%emt 0:03:30]} 23. Qf2 {[%emt 0:03:48]} Be7 {[%emt 0:05:38] White must now prevent ...0-0.} 24. g4 {[%emt 0:05:15]} Nf8 $2 {[%emt 0:24:47][%mdl 8192] White now steadily converts the win.} (24... O-O $15 {stays ahead.}) 25. gxf5 $18 {[%emt 0:05:25]} Qa6 {[%emt 0:00:46]} 26. e6 {[%emt 0:04:02]} fxe6 {[%emt 0:02:36]} 27. Qg3 {[%emt 0:00:44][%csl LRc7,LRg7]} Rg8 {[%emt 0:08:02]} 28. Bf4 {[%emt 0:03:17]} Rc8 {[%emt 0:01:58]} 29. Bxc7 {[%emt 0:00:15]} Kd7 {[%emt 0:03:07]} 30. fxe6+ {[%emt 0:01:00]} Ke8 {[%emt 0:00:04]} 31. Nb5 {[%emt 0:03:00]} a3 {[%emt 0:00:17]} 32. Qf4 {[%emt 0:01:51][%csl Ge6][%cal Rf4f7]} Nxe6 {[%emt 0:00:27]} 33. Rxe6 {[%emt 0:00:12]} Qxe6 {[%emt 0:00:31]} 34. Bd5 {[%emt 0:00:30][%mdl 64] Deflection} Qg6 {[%emt 0:00:57]} 35. Bxg8 {[%emt 0:02:14] Hoping for Re1. This bishop pair is nice.} axb2 {[%emt 0:00:10]} 36. Qe4 {[%emt 0:01:35]} Qa6 {[%emt 0:02:37] ...Ra8 is the strong threat.} 37. Nd6+ {[%emt 0:03:55] White mates.} Kd7 {[%emt 0:00:04]} 38. Qf5+ {[%emt 0:00:09]} Kxc7 {[%emt 0:00:43]} 39. Qxc8+ {[%emt 0:00:05]} Kb6 {[%emt 0:00:02]} 40. Qxb7+ {[%emt 0:00:09] Weighted Error Value: White=0.43/Black=1.08} 1-0